[Event "Deloitte NED-ch Women 2019"]
[Site "Amsterdam"]
[Date "2019.07.04"]
[Round "4.8"]
[White "Van Foreest, Machteld"]
[Black "Keetman, Maaike"]
[Result "1/2-1/2"]
[ECO "B85"]
[WhiteElo "2058"]
[BlackElo "2153"]
[Annotator "NA"]
[PlyCount "127"]
[EventDate "2019.07.01"]
[EventType "tourn"]
[EventCountry "NED"]
[SourceTitle "playchess.com"]
[Source "ChessBase"]
[SourceQuality "1"]
[TimeControl "40/5400+30:1800+30"]

1. e4 {[%emt 0:00:00]} c5 {[%emt 0:00:00]} 2. Nf3 {[%emt 0:00:00]} e6 {[%emt 0:00:00]} 3. d4 {[%emt 0:00:00]} cxd4 {[%emt 0:00:00]} 4. Nxd4 {[%emt 0:00:00]} Nc6 {[%emt 0:00:00]} 5. Nc3 {[%emt 0:00:00]} Qc7 {[%emt 0:00:00]} 6. Be2 {[%emt 0:00:00]} Nf6 {[%emt 0:00:38]} 7. O-O {[%emt 0:01:51]} Be7 {[%emt 0:00:27]} 8. Be3 {[%emt 0:01:43]} O-O {[%emt 0:00:26]} 9. Qd2 {[%emt 0:09:21]} a6 {[%emt 0:06:18]} 10. f4 {[%emt 0:05:09]} d6 {[%emt 0:00:27]} 11. Bf3 {[%emt 0:01:20]} Bd7 {[%emt 0:10:26]} 12. Rad1 {[%emt 0:03:28]} Nxd4 {[%emt 0:11:17]} 13. Bxd4 {[%emt 0:01:38]} Bc6 {[%emt 0:00:27]} 14. Kh1 {[%emt 0:02:41]} Rad8 {[%emt 0:09:58]} 15. Qe3 {[%emt 0:03:32]} Nd7 {[%emt 0:02:49]} 16. Qf2 {[%emt 0:03:21]} Bf6 {[%emt 0:05:12]} 17. Rd2 {[%emt 0:04:28]} Bxd4 {[%emt 0:11:13]} 18. Qxd4 {[%emt 0:00:24]} Nf6 {[%emt 0:00:17]} 19. Rfd1 {[%emt 0:04:02]} Rd7 {[%emt 0:01:07]} 20. Qe3 {[%emt 0:03:47]} Rfd8 {[%emt 0:03:24]} 21. f5 {[%emt 0:07:34]} b5 {[%emt 0:07:17]} 22. fxe6 {[%emt 0:01:44]} fxe6 {[%emt 0:00:11]} 23. Ne2 {[%emt 0:01:17]} e5 {[%emt 0:07:39]} 24. Ng3 {[%emt 0:01:17]} Kh8 {[%emt 0:04:11]} 25. Nf5 {[%emt 0:02:05]} g6 {[%emt 0:10:16]} 26. Qg5 {[%emt 0:02:16]} Ne8 {[%emt 0:00:29]} 27. Nh6 {[%emt 0:01:22]} Rc8 {[%emt 0:03:11]} 28. Bg4 {[%emt 0:01:17]} Bxe4 {[%emt 0:00:57]} 29. Bxd7 {[%emt 0:00:13]} Qxd7 {[%emt 0:00:04]} 30. Rxd6 {[%emt 0:02:11]} Nxd6 {[%emt 0:01:56]} 31. Rxd6 {[%emt 0:00:56]} Rf8 {[%emt 0:01:00]} 32. Qxe5+ {[%emt 0:01:38]} Qg7 {[%emt 0:00:06]} 33. Nf7+ {[%emt 0:00:27]} Kg8 {[%emt 0:00:04]} 34. Qxe4 {[%emt 0:01:09]} Qxf7 {[%emt 0:00:15]} 35. h3 {[%emt 0:00:47]} Qxa2 {[%emt 0:01:33]} 36. b3 {[%emt 0:01:34]} Qa1+ {[%emt 0:02:23]} 37. Kh2 {[%emt 0:00:02]} Qg7 {[%emt 0:01:00]} 38. Qe6+ {[%emt 0:04:42]} Kh8 {[%emt 0:00:16]} 39. Rxa6 {[%emt 0:02:38]} Qc7+ {[%emt 0:01:29]} 40. Qd6 {[%emt 0:00:11]} Qxd6+ {[%emt 0:00:27]} 41. Rxd6 {[%emt 0:30:03]} Rc8 {[%emt 0:01:27]} 42. Rb6 {[%emt 0:00:00]} Rc7 {[%emt 0:04:15]} 43. c3 Rxc3 {[%emt 0:00:30]} 44. Rxb5 {[%emt 0:00:00]} Rc2 {[%emt 0:00:22]} 45. Rb6 {[%emt 0:00:29]} Rb2 46. Rb7 {[%emt 0:00:00]} Kg8 {[%emt 0:01:30]} 47. Kg3 {[%emt 0:00:00]} h6 {[%emt 0:03:35]} 48. b4 {[%emt 0:00:00]} Kf8 {[%emt 0:00:48]} 49. b5 {[%emt 0:00:00]} Rb4 {[%emt 0:03:24]} 50. b6 {[%emt 0:00:00]} Ke8 {[%emt 0:03:09]} 51. Kf3 {[%emt 0:00:00]} g5 {[%emt 0:03:08]} 52. g4 {[%emt 0:00:00]} Kd8 {[%emt 0:03:33]} 53. Rb8+ {[%emt 0:00:00]} Kd7 {[%emt 0:00:17]} 54. b7 {[%emt 0:00:00]} Kc7 {[%emt 0:00:56]} 55. Rh8 {[%emt 0:00:00]} Kxb7 {[%emt 0:01:47]} 56. Rxh6 {[%emt 0:00:00]} Kc7 {[%emt 0:00:42]} 57. Rh5 {[%emt 0:00:00]} Rb5 {[%emt 0:00:12]} 58. Ke4 {[%emt 0:00:00]} Kd6 {[%emt 0:00:49]} 59. h4 {[%emt 0:00:00]} Re5+ {[%emt 0:03:08]} 60. Kd4 {[%emt 0:00:00]} Rd5+ {[%emt 0:00:05]} 61. Kc4 {[%emt 0:00:00]} Rc5+ {[%emt 0:00:04]} 62. Kb4 {[%emt 0:00:00]} Re5 {[%emt 0:00:25]} 63. hxg5 {[%emt 0:00:00]} Re4+ {[%emt 0:00:30]} 64. Kc3 {[%emt 0:00:00]} 1/2-1/2

[Event "Deloitte NED-ch Women 2019"]
[Site "Amsterdam"]
[Date "2019.07.05"]
[Round "5.3"]
[White "Van Weersel, Arlette"]
[Black "Ratsma, Rosa"]
[Result "0-1"]
[ECO "B40"]
[WhiteElo "2176"]
[BlackElo "2282"]
[Annotator "NA"]
[PlyCount "78"]
[EventDate "2019.07.01"]
[EventType "tourn"]
[EventCountry "NED"]
[SourceTitle "playchess.com"]
[Source "ChessBase"]
[SourceQuality "1"]
[TimeControl "40/5400+30:1800+30"]

1. e4 {[%emt 0:00:00]} c5 {[%emt 0:00:00]} 2. Nf3 {[%emt 0:00:00]} e6 {[%emt 0:00:00]} 3. c4 {[%emt 0:00:07]} Nc6 {[%emt 0:00:12]} 4. d4 {[%emt 0:00:24]} cxd4 {[%emt 0:00:18]} 5. Nxd4 {[%emt 0:00:04]} Nf6 {[%emt 0:00:22]} 6. Nxc6 {[%emt 0:04:00]} bxc6 {[%emt 0:00:15]} 7. Bd3 {[%emt 0:06:56]} d5 {[%emt 0:03:30]} 8. exd5 {[%emt 0:06:59]} cxd5 {[%emt 0:01:05]} 9. O-O {[%emt 0:01:38]} Be7 {[%emt 0:06:54]} 10. cxd5 {[%emt 0:06:08]} Nxd5 {[%emt 0:02:12]} 11. Bb5+ {[%emt 0:13:38]} Kf8 {[%emt 0:09:18]} 12. Nc3 {[%emt 0:11:00]} Bb7 {[%emt 0:01:24]} 13. Nxd5 {[%emt 0:06:02]} Bxd5 {[%emt 0:07:45]} 14. b3 {[%emt 0:14:41]} Bf6 {[%emt 0:08:48]} 15. Ba3+ {[%emt 0:05:57]} Kg8 {[%emt 0:01:49]} 16. Rc1 {[%emt 0:00:10]} Qa5 {[%emt 0:08:53]} 17. Ba4 {[%emt 0:01:39]} h5 {[%emt 0:03:54]} 18. Rc5 {[%emt 0:05:45]} Qa6 {[%emt 0:03:34]} 19. Qc2 {[%emt 0:00:42]} Bd4 {[%emt 0:04:41]} 20. Rc7 {[%emt 0:02:35]} Be5 {[%emt 0:01:29]} 21. Rd7 {[%emt 0:00:43]} Bxh2+ {[%emt 0:02:01]} 22. Kxh2 {[%emt 0:01:07]} Qxf1 {[%emt 0:00:12]} 23. f3 {[%emt 0:02:00]} Rh6 {[%emt 0:02:31]} 24. Bc5 {[%emt 0:01:19]} h4 {[%emt 0:04:19]} 25. Qf2 {[%emt 0:01:44]} Qxf2 {[%emt 0:06:08]} 26. Bxf2 {[%emt 0:00:03]} a6 {[%emt 0:01:09]} 27. Be3 {[%emt 0:03:06]} Rh5 {[%emt 0:02:54]} 28. Re7 {[%emt 0:03:24]} Rc8 {[%emt 0:01:54]} 29. b4 {[%emt 0:00:49]} Bxa2 {[%emt 0:01:25]} 30. Bc5 {[%emt 0:00:19]} Bc4 {[%emt 0:04:27]} 31. Bd7 {[%emt 0:01:01]} Rf8 {[%emt 0:01:27]} 32. Ba4 {[%emt 0:01:13]} Rd8 {[%emt 0:01:43]} 33. Rc7 {[%emt 0:00:27]} Bd3 {[%emt 0:01:53]} 34. Be7 {[%emt 0:00:43]} Rb8 {[%emt 0:00:37]} 35. Rd7 {[%emt 0:00:35]} Bb5 {[%emt 0:02:22]} 36. Bxb5 {[%emt 0:00:05]} Rhxb5 {[%emt 0:00:48]} 37. Rd4 {[%emt 0:00:24]} R8b7 {[%emt 0:00:49]} 38. Bxh4 {[%emt 0:00:55]} Rxb4 {[%emt 0:00:20]} 39. Rd8+ {[%emt 0:00:04]} Kh7 {[%emt 0:00:06]} 0-1

[Event "Deloitte NED-ch Women 2019"]
[Site "Amsterdam"]
[Date "2019.07.05"]
[Round "5.5"]
[White "Keetman, Maaike"]
[Black "Paulet, Iozefina"]
[Result "1/2-1/2"]
[ECO "B23"]
[WhiteElo "2153"]
[BlackElo "2262"]
[Annotator "NA"]
[PlyCount "83"]
[EventDate "2019.07.01"]
[EventType "tourn"]
[EventCountry "NED"]
[SourceTitle "playchess.com"]
[Source "ChessBase"]
[SourceQuality "1"]
[TimeControl "40/5400+30:1800+30"]

1. e4 {[%emt 0:00:00]} c5 {[%emt 0:00:00]} 2. Nc3 {[%emt 0:00:00]} a6 {[%emt 0:00:18]} 3. g3 {[%emt 0:00:02]} d6 {[%emt 0:00:08]} 4. Bg2 {[%emt 0:00:28]} Nc6 {[%emt 0:00:06]} 5. d3 {[%emt 0:00:50]} g6 {[%emt 0:00:11]} 6. Nge2 {[%emt 0:01:26]} Bg7 {[%emt 0:00:04]} 7. Be3 {[%emt 0:00:12]} Nd4 {[%emt 0:00:07]} 8. Qd2 {[%emt 0:03:57]} Bg4 {[%emt 0:10:45]} 9. Ng1 {[%emt 0:14:15]} Rb8 {[%emt 0:04:45]} 10. h3 {[%emt 0:03:02]} Bd7 {[%emt 0:00:05]} 11. Nd1 {[%emt 0:04:11]} e5 {[%emt 0:09:46]} 12. c3 {[%emt 0:02:55]} Ne6 {[%emt 0:00:04]} 13. Ne2 {[%emt 0:00:14]} f5 {[%emt 0:03:05]} 14. O-O {[%emt 0:12:53]} Nf6 {[%emt 0:01:17]} 15. exf5 {[%emt 0:07:53]} gxf5 {[%emt 0:00:09]} 16. f4 {[%emt 0:00:06]} O-O {[%emt 0:03:54]} 17. fxe5 {[%emt 0:15:52]} dxe5 {[%emt 0:00:59]} 18. Rxf5 {[%emt 0:00:09]} Nf4 {[%emt 0:11:32]} 19. Rxf4 {[%emt 0:00:37]} exf4 {[%emt 0:00:11]} 20. Bxf4 {[%emt 0:00:06]} Rc8 {[%emt 0:00:26]} 21. Bxb7 {[%emt 0:04:47]} Bxh3 {[%emt 0:00:18]} 22. Nf2 {[%emt 0:04:26]} Bd7 {[%emt 0:02:59]} 23. Bxc8 {[%emt 0:01:46]} Bxc8 {[%emt 0:00:04]} 24. Bh6 {[%emt 0:04:48]} Rf7 {[%emt 0:05:43]} 25. Qg5 {[%emt 0:03:51]} Qf8 {[%emt 0:00:32]} 26. Rf1 {[%emt 0:02:51]} Kh8 {[%emt 0:03:52]} 27. Bxg7+ {[%emt 0:00:18]} Rxg7 {[%emt 0:00:04]} 28. Qf4 {[%emt 0:02:59]} Qd8 {[%emt 0:08:03]} 29. Ne4 {[%emt 0:02:25]} Qxd3 {[%emt 0:02:21]} 30. Qxf6 {[%emt 0:05:57]} Qxe4 {[%emt 0:03:36]} 31. Qf8+ {[%emt 0:00:45]} Rg8 {[%emt 0:00:02]} 32. Qf6+ {[%emt 0:00:02]} Rg7 {[%emt 0:00:06]} 33. Qf8+ {[%emt 0:01:11]} Rg8 {[%emt 0:00:02]} 34. Qf6+ {[%emt 0:00:00]} Rg7 {[%emt 0:00:07]} 35. Rd1 {[%emt 0:01:16]} Qe3+ {[%emt 0:01:21]} 36. Kf1 {[%emt 0:00:30]} Bh3+ {[%emt 0:00:06]} 37. Ke1 {[%emt 0:00:00]} h6 {[%emt 0:00:09]} 38. Qd8+ {[%emt 0:00:43]} Rg8 {[%emt 0:00:40]} 39. Qf6+ {[%emt 0:00:25]} Kh7 {[%emt 0:00:11]} 40. Qf4 {[%emt 0:01:07]} Qxf4 {[%emt 0:12:50]} 41. Nxf4 {[%emt 0:11:19]} Rxg3 {[%emt 0:01:39]} 42. Nxh3 {[%emt 0:03:33]} 1/2-1/2

[Event "Deloitte NED-ch Women 2019"]
[Site "Amsterdam"]
[Date "2019.07.05"]
[Round "5.6"]
[White "Roebers, Eline"]
[Black "Lanchava, Tea"]
[Result "1-0"]
[ECO "B15"]
[WhiteElo "2069"]
[BlackElo "2315"]
[Annotator "NA"]
[PlyCount "79"]
[EventDate "2019.07.01"]
[EventType "tourn"]
[EventCountry "NED"]
[SourceTitle "playchess.com"]
[Source "ChessBase"]
[SourceQuality "1"]
[TimeControl "40/5400+30:1800+30"]

1. e4 {[%emt 0:00:00]} c6 {[%emt 0:00:00]} 2. d4 {[%emt 0:00:00]} g6 {[%emt 0:00:00]} 3. Nc3 {[%emt 0:00:31]} d5 {[%emt 0:00:26]} 4. e5 {[%emt 0:00:56]} Bg7 {[%emt 0:01:12]} 5. f4 {[%emt 0:01:10]} Nh6 {[%emt 0:00:24]} 6. Nf3 {[%emt 0:03:02]} Bg4 {[%emt 0:01:32]} 7. h3 {[%emt 0:04:08]} Bxf3 {[%emt 0:00:38]} 8. Qxf3 {[%emt 0:00:05]} O-O {[%emt 0:00:17]} 9. Be3 {[%emt 0:03:39]} f6 {[%emt 0:00:44]} 10. Qe2 {[%emt 0:02:47]} Nf5 {[%emt 0:07:47]} 11. Bf2 {[%emt 0:02:47]} fxe5 {[%emt 0:00:38]} 12. dxe5 {[%emt 0:01:54]} e6 {[%emt 0:03:25]} 13. O-O-O {[%emt 0:04:06]} b5 {[%emt 0:04:48]} 14. Kb1 {[%emt 0:09:29]} Qa5 {[%emt 0:02:24]} 15. g4 {[%emt 0:07:24]} Nh6 {[%emt 0:08:01]} 16. Qe3 {[%emt 0:01:30]} Nd7 {[%emt 0:00:45]} 17. Qg3 {[%emt 0:12:09]} Nf7 {[%emt 0:08:40]} 18. h4 {[%emt 0:08:44]} Nfxe5 {[%emt 0:12:43]} 19. fxe5 {[%emt 0:10:24]} Bxe5 {[%emt 0:00:09]} 20. Qe3 {[%emt 0:04:46]} Rf4 {[%emt 0:08:19]} 21. Bg3 {[%emt 0:07:07]} Raf8 {[%emt 0:11:48]} 22. Bxf4 {[%emt 0:00:25]} Rxf4 {[%emt 0:00:05]} 23. Ne2 {[%emt 0:06:30]} Ra4 {[%emt 0:01:12]} 24. Nc1 {[%emt 0:01:38]} Re4 {[%emt 0:03:12]} 25. Qd2 {[%emt 0:01:22]} Qb6 {[%emt 0:01:04]} 26. Bg2 {[%emt 0:01:55]} Rd4 {[%emt 0:01:20]} 27. Qe2 {[%emt 0:02:14]} Ra4 {[%emt 0:02:18]} 28. Rhf1 {[%emt 0:01:30]} c5 {[%emt 0:00:45]} 29. Qd2 {[%emt 0:00:42]} Rxg4 {[%emt 0:01:05]} 30. Bxd5 {[%emt 0:00:58]} Rd4 {[%emt 0:00:17]} 31. Qf2 {[%emt 0:00:32]} Nf6 {[%emt 0:01:54]} 32. Bg2 {[%emt 0:00:15]} Ra4 {[%emt 0:02:45]} 33. Qd2 {[%emt 0:00:44]} Kg7 {[%emt 0:01:33]} 34. Qd8 {[%emt 0:00:44]} Qxd8 {[%emt 0:00:18]} 35. Rxd8 {[%emt 0:00:05]} Rxh4 {[%emt 0:00:05]} 36. Nd3 {[%emt 0:01:00]} Bc7 {[%emt 0:00:19]} 37. Rc8 {[%emt 0:00:20]} Bb6 {[%emt 0:01:12]} 38. Nxc5 {[%emt 0:00:13]} Ng4 {[%emt 0:00:22]} 39. Nxe6+ {[%emt 0:00:38]} Kh6 {[%emt 0:00:08]} 40. Rh1 {[%emt 0:00:34]} 1-0

[Event "Deloitte NED-ch Women 2019"]
[Site "Amsterdam"]
[Date "2019.07.05"]
[Round "5.8"]
[White "Kazarian, Anna-Maja"]
[Black "Van Foreest, Machteld"]
[Result "1-0"]
[ECO "E17"]
[WhiteElo "2142"]
[BlackElo "2058"]
[Annotator "NA"]
[PlyCount "111"]
[EventDate "2019.07.01"]
[EventType "tourn"]
[EventCountry "NED"]
[SourceTitle "playchess.com"]
[Source "ChessBase"]
[SourceQuality "1"]
[TimeControl "40/5400+30:1800+30"]

1. Nf3 {[%emt 0:00:00]} Nf6 {[%emt 0:00:00]} 2. c4 {[%emt 0:00:00]} b6 {[%emt 0:00:00]} 3. g3 {[%emt 0:00:00]} Bb7 {[%emt 0:00:11]} 4. Bg2 {[%emt 0:00:00]} e6 {[%emt 0:00:28]} 5. O-O {[%emt 0:00:06]} Be7 {[%emt 0:00:10]} 6. d4 {[%emt 0:00:08]} O-O {[%emt 0:00:10]} 7. Re1 {[%emt 0:00:05]} Na6 {[%emt 0:00:52]} 8. a3 {[%emt 0:03:35]} c6 {[%emt 0:07:18]} 9. e4 {[%emt 0:02:17]} d5 {[%emt 0:03:56]} 10. cxd5 {[%emt 0:06:01]} exd5 {[%emt 0:05:22]} 11. e5 {[%emt 0:00:14]} Ne4 {[%emt 0:00:24]} 12. Nfd2 {[%emt 0:04:16]} Nxd2 {[%emt 0:01:37]} 13. Nxd2 {[%emt 0:03:32]} c5 {[%emt 0:04:22]} 14. Nf3 {[%emt 0:04:44]} Nc7 {[%emt 0:06:24]} 15. h4 {[%emt 0:08:02]} Ne6 {[%emt 0:02:15]} 16. Qd3 {[%emt 0:11:45]} a5 {[%emt 0:16:16]} 17. Bd2 {[%emt 0:06:03]} Ba6 {[%emt 0:16:52]} 18. Qf5 {[%emt 0:08:30]} cxd4 {[%emt 0:02:24]} 19. Qg4 {[%emt 0:11:34]} d3 {[%emt 0:07:17]} 20. Nd4 {[%emt 0:03:07]} Nxd4 {[%emt 0:07:17]} 21. Qxd4 {[%emt 0:00:14]} Rc8 {[%emt 0:01:38]} 22. Bc3 {[%emt 0:06:34]} Bc5 {[%emt 0:04:24]} 23. Qg4 {[%emt 0:03:58]} d4 {[%emt 0:02:25]} 24. Bd2 {[%emt 0:00:04]} f5 {[%emt 0:01:46]} 25. Qf3 {[%emt 0:04:39]} Be7 {[%emt 0:04:13]} 26. Rac1 {[%emt 0:03:14]} Qd7 {[%emt 0:01:12]} 27. e6 {[%emt 0:03:17]} Qb5 {[%emt 0:00:14]} 28. Qf4 {[%emt 0:04:16]} Qxb2 {[%emt 0:01:07]} 29. Rb1 {[%emt 0:00:31]} Qxa3 {[%emt 0:01:39]} 30. Rxb6 {[%emt 0:00:10]} Bc4 {[%emt 0:00:07]} 31. Rb7 {[%emt 0:02:56]} Qd6 {[%emt 0:00:50]} 32. Qxd6 {[%emt 0:01:14]} Bxd6 {[%emt 0:00:01]} 33. Bxa5 {[%emt 0:00:49]} Rfe8 {[%emt 0:00:43]} 34. Rd7 {[%emt 0:00:22]} Bc5 {[%emt 0:00:36]} 35. Bd5 {[%emt 0:00:34]} Bxd5 {[%emt 0:00:40]} 36. Rxd5 {[%emt 0:00:02]} Rc6 {[%emt 0:00:57]} 37. Rxf5 {[%emt 0:00:40]} Bb6 {[%emt 0:00:51]} 38. Bb4 {[%emt 0:00:24]} g6 {[%emt 0:00:04]} 39. Rfe5 {[%emt 0:00:41]} Rc4 {[%emt 0:00:19]} 40. Rb5 {[%emt 0:00:13]} Rxb4 {[%emt 0:00:17]} 41. Rxb4 {[%emt 0:31:05]} Ba5 {[%emt 0:31:20]} 42. Reb1 {[%emt 0:00:00]} d2 {[%emt 0:00:00]} 43. Rxd4 {[%emt 0:00:00]} Rxe6 {[%emt 0:00:00]} 44. Rb8+ {[%emt 0:00:00]} Kg7 {[%emt 0:00:00]} 45. Rb7+ {[%emt 0:00:00]} Kh6 {[%emt 0:00:00]} 46. Kg2 {[%emt 0:00:00]} g5 {[%emt 0:00:00]} 47. hxg5+ {[%emt 0:00:00]} Kg6 {[%emt 0:00:00]} 48. Rbd7 {[%emt 0:00:00]} Bc3 {[%emt 0:01:04]} 49. Rd3 {[%emt 0:00:00]} Bb4 {[%emt 0:00:21]} 50. f4 {[%emt 0:00:00]} Re1 {[%emt 0:03:20]} 51. Kf3 {[%emt 0:00:00]} Kf5 {[%emt 0:00:46]} 52. R3d5+ {[%emt 0:02:05]} Kg6 {[%emt 0:00:48]} 53. Kg4 {[%emt 0:00:00]} h5+ {[%emt 0:00:15]} 54. gxh6 {[%emt 0:00:00]} Kxh6 {[%emt 0:00:13]} 55. Rh5+ {[%emt 0:00:00]} Kg6 {[%emt 0:00:02]} 56. f5+ {[%emt 0:00:00]} 1-0

[Event "Deloitte NED-ch Women 2019"]
[Site "Amsterdam"]
[Date "2019.07.06"]
[Round "6.3"]
[White "Paulet, Iozefina"]
[Black "Kazarian, Anna-Maja"]
[Result "1-0"]
[ECO "B13"]
[WhiteElo "2262"]
[BlackElo "2142"]
[Annotator "NA"]
[PlyCount "189"]
[EventDate "2019.07.01"]
[EventType "tourn"]
[EventCountry "NED"]
[SourceTitle "playchess.com"]
[Source "ChessBase"]
[SourceQuality "1"]
[TimeControl "40/5400+30:1800+30"]

1. e4 {[%emt 0:08:05]} c6 {[%emt 0:00:00]} 2. d4 {[%emt 0:00:04]} d5 {[%emt 0:00:00]} 3. exd5 {[%emt 0:00:04]} cxd5 {[%emt 0:00:00]} 4. Bf4 {[%emt 0:00:04]} Nc6 {[%emt 0:00:00]} 5. c3 {[%emt 0:00:04]} Bf5 {[%emt 0:00:04]} 6. Nd2 {[%emt 0:00:04]} e6 {[%emt 0:00:35]} 7. Ngf3 {[%emt 0:00:04]} Bd6 {[%emt 0:04:01]} 8. Bxd6 {[%emt 0:00:13]} Qxd6 {[%emt 0:00:05]} 9. Bb5 {[%emt 0:00:03]} Nge7 {[%emt 0:04:53]} 10. Nh4 {[%emt 0:01:37]} O-O {[%emt 0:06:00]} 11. O-O {[%emt 0:00:11]} Bg6 {[%emt 0:09:28]} 12. Re1 {[%emt 0:06:18]} a6 {[%emt 0:10:52]} 13. Bf1 {[%emt 0:00:26]} Rad8 {[%emt 0:05:43]} 14. Nb3 {[%emt 0:02:44]} e5 {[%emt 0:08:47]} 15. dxe5 {[%emt 0:34:45]} Nxe5 {[%emt 0:00:06]} 16. Nd4 {[%emt 0:00:03]} N5c6 {[%emt 0:06:20]} 17. Nxg6 {[%emt 0:02:24]} hxg6 {[%emt 0:02:36]} 18. Nf3 {[%emt 0:13:33]} Qf6 {[%emt 0:02:32]} 19. Qb3 {[%emt 0:00:25]} Rd7 {[%emt 0:03:12]} 20. Rad1 {[%emt 0:01:00]} Rfd8 {[%emt 0:01:14]} 21. Rd2 {[%emt 0:03:39]} Nf5 {[%emt 0:07:45]} 22. Rde2 {[%emt 0:08:05]} d4 {[%emt 0:05:33]} 23. cxd4 {[%emt 0:00:29]} Ncxd4 {[%emt 0:02:15]} 24. Nxd4 {[%emt 0:00:16]} Qxd4 {[%emt 0:05:19]} 25. Qc2 {[%emt 0:02:55]} Qf4 {[%emt 0:02:57]} 26. Re4 {[%emt 0:02:04]} Qg5 {[%emt 0:02:59]} 27. Qc5 {[%emt 0:01:23]} Kh7 {[%emt 0:02:35]} 28. Re8 {[%emt 0:02:33]} Rxe8 {[%emt 0:01:04]} 29. Rxe8 {[%emt 0:00:03]} Rd8 {[%emt 0:00:16]} 30. Qf8 {[%emt 0:03:45]} Rxe8 {[%emt 0:00:04]} 31. Qxe8 {[%emt 0:00:03]} Qf6 {[%emt 0:02:03]} 32. b3 {[%emt 0:03:13]} b5 {[%emt 0:02:44]} 33. h3 {[%emt 0:00:29]} Nd4 {[%emt 0:01:38]} 34. Qe3 {[%emt 0:02:18]} Nf5 {[%emt 0:00:57]} 35. Qa7 {[%emt 0:00:30]} Kg8 {[%emt 0:02:05]} 36. Qa8+ {[%emt 0:01:23]} Kh7 {[%emt 0:00:02]} 37. Qf3 {[%emt 0:00:04]} Qe6 {[%emt 0:01:08]} 38. Qe2 {[%emt 0:00:12]} Qd6 {[%emt 0:00:31]} 39. Qe8 {[%emt 0:01:05]} Qd5 {[%emt 0:00:02]} 40. Qc8 {[%emt 0:00:33]} a5 {[%emt 0:00:19]} 41. Qa6 {[%emt 0:06:13]} b4 {[%emt 0:04:32]} 42. Qd3 {[%emt 0:08:12]} Qe5 {[%emt 0:03:38]} 43. Qb5 {[%emt 0:00:43]} Qd4 {[%emt 0:07:12]} 44. Qc4 {[%emt 0:07:42]} Qf6 {[%emt 0:05:15]} 45. Qd5 {[%emt 0:00:19]} Nd6 {[%emt 0:01:59]} 46. g3 {[%emt 0:04:09]} Qe7 {[%emt 0:03:42]} 47. Bd3 {[%emt 0:02:06]} Qc7 {[%emt 0:03:52]} 48. Kg2 {[%emt 0:00:03]} Ne8 {[%emt 0:01:21]} 49. h4 {[%emt 0:01:25]} Nf6 {[%emt 0:00:08]} 50. Qb5 {[%emt 0:00:30]} Kg8 {[%emt 0:00:48]} 51. Bc4 {[%emt 0:02:28]} Kh7 {[%emt 0:00:50]} 52. Bd3 {[%emt 0:01:29]} Kg8 {[%emt 0:00:08]} 53. Qa6 {[%emt 0:00:05]} Qd7 {[%emt 0:02:20]} 54. Qa8+ {[%emt 0:01:22]} Kh7 {[%emt 0:00:03]} 55. Qf3 {[%emt 0:00:04]} Kg8 {[%emt 0:00:19]} 56. Bc4 {[%emt 0:00:10]} Kh7 {[%emt 0:00:35]} 57. Qf4 {[%emt 0:00:51]} Qb7+ {[%emt 0:00:35]} 58. Kg1 {[%emt 0:00:15]} Qd7 {[%emt 0:00:25]} 59. Qg5 {[%emt 0:00:34]} Qc7 {[%emt 0:02:13]} 60. Qe3 {[%emt 0:00:02]} Qd7 {[%emt 0:00:44]} 61. Qc5 {[%emt 0:00:03]} Qd1+ {[%emt 0:00:33]} 62. Kg2 {[%emt 0:00:04]} Qc2 {[%emt 0:00:20]} 63. Qxa5 {[%emt 0:00:57]} Ng4 {[%emt 0:00:27]} 64. Qa7 {[%emt 0:01:36]} Qe4+ {[%emt 0:00:05]} 65. Kg1 {[%emt 0:00:22]} Ne5 {[%emt 0:01:02]} 66. Qe3 {[%emt 0:00:56]} Qb1+ {[%emt 0:00:35]} 67. Bf1 {[%emt 0:00:02]} f6 {[%emt 0:00:27]} 68. Qe2 {[%emt 0:00:37]} Nc6 {[%emt 0:00:28]} 69. h5 {[%emt 0:00:21]} Ne5 {[%emt 0:00:39]} 70. Kg2 {[%emt 0:00:30]} g5 {[%emt 0:00:25]} 71. f4 {[%emt 0:02:09]} gxf4 {[%emt 0:00:13]} 72. gxf4 {[%emt 0:00:00]} Nc6 {[%emt 0:00:51]} 73. Kf2 {[%emt 0:01:36]} Kh6 {[%emt 0:00:18]} 74. Qc4 {[%emt 0:00:42]} Ne7 {[%emt 0:00:38]} 75. Be2 {[%emt 0:00:53]} Qxa2 {[%emt 0:00:16]} 76. Qxb4 {[%emt 0:00:07]} Qa7+ {[%emt 0:00:04]} 77. Ke1 {[%emt 0:00:34]} Qe3 {[%emt 0:00:24]} 78. Qb8 {[%emt 0:00:51]} Qg1+ {[%emt 0:00:24]} 79. Kd2 {[%emt 0:00:03]} Qd4+ {[%emt 0:00:08]} 80. Kc2 {[%emt 0:00:42]} Qe4+ {[%emt 0:00:01]} 81. Bd3 {[%emt 0:00:48]} Qc6+ {[%emt 0:00:06]} 82. Kb2 {[%emt 0:00:17]} Kxh5 {[%emt 0:02:03]} 83. Qh8+ {[%emt 0:00:04]} Kg4 {[%emt 0:00:04]} 84. Qxg7+ {[%emt 0:00:04]} Kxf4 {[%emt 0:00:12]} 85. Qxe7 {[%emt 0:00:05]} f5 {[%emt 0:00:50]} 86. Qe2 {[%emt 0:01:33]} Qc5 {[%emt 0:00:45]} 87. Qf1+ {[%emt 0:00:31]} Kg3 {[%emt 0:00:25]} 88. Qxf5 {[%emt 0:00:10]} Qd4+ {[%emt 0:00:05]} 89. Ka3 {[%emt 0:00:46]} Qa7+ {[%emt 0:00:32]} 90. Kb4 {[%emt 0:00:02]} Qb6+ {[%emt 0:01:08]} 91. Kc3 {[%emt 0:00:06]} Qc7+ {[%emt 0:00:31]} 92. Bc4 {[%emt 0:00:24]} Qg7+ {[%emt 0:00:20]} 93. Kd3 {[%emt 0:00:07]} Qb2 {[%emt 0:00:49]} 94. Qg5+ {[%emt 0:00:09]} Kf2 {[%emt 0:00:29]} 95. Qd2+ {[%emt 0:00:05]} 1-0